[Event "Titled Tuesday Blitz September 27 Late 2022"]
[White "Jeet, Jain"]
[Black "Zhigalko, Sergei"]
[WhiteFideId "5073022"]
[BlackFideId "13502956"]
[WhiteElo "2055"]
[BlackElo "2662"]
[Result "0-1"]
[Round "10"]
[TimeControl "180+1"]
[Date "2022.09.27"]
[WhiteClock "0:00:02"]
[BlackClock "0:00:05"]

1. d4 {[%clk 0:03:00]}  Nf6 {[%clk 0:03:00]} 2. Nf3 {[%clk 0:03:00]}  e6 {[%clk 0:03:00]} 3. Bf4 {[%clk 0:03:00]}  b6 {[%clk 0:02:58]} 4. e3 {[%clk 0:03:01]}  Bb7 {[%clk 0:02:59]} 5. Be2 {[%clk 0:03:01]}  Nh5 {[%clk 0:02:59]} 6. Bg5 {[%clk 0:02:59]}  Be7 {[%clk 0:03:00]} 7. Bxe7 {[%clk 0:02:59]}  Qxe7 {[%clk 0:03:01]} 8. Nbd2 {[%clk 0:02:53]}  O-O {[%clk 0:03:00]} 9. O-O {[%clk 0:02:51]}  f5 {[%clk 0:03:01]} 10. c3 {[%clk 0:02:48]}  d6 {[%clk 0:02:59]} 11. Bd3 {[%clk 0:02:45]}  Nd7 {[%clk 0:02:58]} 12. Qe2 {[%clk 0:02:43]}  a6 {[%clk 0:02:55]} 13. a4 {[%clk 0:02:42]}  e5 {[%clk 0:02:54]} 14. dxe5 {[%clk 0:02:38]}  dxe5 {[%clk 0:02:53]} 15. Bc4+ {[%clk 0:02:35]}  Kh8 {[%clk 0:02:53]} 16. Nxe5 {[%clk 0:02:32]}  Nxe5 {[%clk 0:02:37]} 17. Qxh5 {[%clk 0:02:31]}  Rad8 {[%clk 0:02:09]} 18. Rad1 {[%clk 0:02:10]}  Rxd2 {[%clk 0:01:48]} 19. Rxd2 {[%clk 0:02:11]}  Nxc4 {[%clk 0:01:48]} 20. Rd4 {[%clk 0:02:11]}  Nd6 {[%clk 0:01:29]} 21. Rfd1 {[%clk 0:02:07]}  g6 {[%clk 0:01:21]} 22. Qh3 {[%clk 0:02:03]}  Kg7 {[%clk 0:01:12]} 23. c4 {[%clk 0:01:57]}  a5 {[%clk 0:01:09]} 24. b3 {[%clk 0:01:56]}  Re8 {[%clk 0:01:07]} 25. Rh4 {[%clk 0:01:54]}  h5 {[%clk 0:01:07]} 26. Rhd4 {[%clk 0:01:53]}  Qf6 {[%clk 0:01:04]} 27. Qh4 {[%clk 0:01:43]}  Qxh4 {[%clk 0:00:58]} 28. Rxh4 {[%clk 0:01:44]}  Be4 {[%clk 0:00:59]} 29. Rd2 {[%clk 0:01:36]}  Kh6 {[%clk 0:00:53]} 30. f4 {[%clk 0:01:15]}  Bc6 {[%clk 0:00:48]} 31. Rh3 {[%clk 0:01:05]}  Ne4 {[%clk 0:00:46]} 32. Rd4 {[%clk 0:01:04]}  Nc5 {[%clk 0:00:46]} 33. e4 {[%clk 0:01:01]}  Rxe4 {[%clk 0:00:36]} 34. Rd8 {[%clk 0:00:48]}  Rxf4 {[%clk 0:00:33]} 35. Re3 {[%clk 0:00:47]}  Re4 {[%clk 0:00:33]} 36. Rg3 {[%clk 0:00:43]}  Re1+ {[%clk 0:00:29]} 37. Kf2 {[%clk 0:00:43]}  Rb1 {[%clk 0:00:26]} 38. Re3 {[%clk 0:00:36]}  Rb2+ {[%clk 0:00:18]} 39. Ke1 {[%clk 0:00:31]}  Be4 {[%clk 0:00:17]} 40. h4 {[%clk 0:00:25]}  Rxb3 {[%clk 0:00:12]} 41. Rxb3 {[%clk 0:00:24]}  Nxb3 {[%clk 0:00:13]} 42. g3 {[%clk 0:00:24]}  Nc5 {[%clk 0:00:10]} 43. Rc8 {[%clk 0:00:20]}  c6 {[%clk 0:00:10]} 44. Kd2 {[%clk 0:00:16]}  Nxa4 {[%clk 0:00:10]} 45. Rb8 {[%clk 0:00:15]}  Kg7 {[%clk 0:00:03]} 46. Ke3 {[%clk 0:00:15]}  Kf6 {[%clk 0:00:03]} 47. Kf4 {[%clk 0:00:14]}  Ke6 {[%clk 0:00:02]} 48. Kg5 {[%clk 0:00:14]}  Ke5 {[%clk 0:00:02]} 49. Rg8 {[%clk 0:00:11]}  b5 {[%clk 0:00:02]} 50. cxb5 {[%clk 0:00:11]}  cxb5 {[%clk 0:00:03]} 51. Kxg6 {[%clk 0:00:12]}  f4+ {[%clk 0:00:03]} 52. Kxh5 {[%clk 0:00:12]}  f3 {[%clk 0:00:03]} 53. Rf8 {[%clk 0:00:12]}  b4 {[%clk 0:00:03]} 54. g4 {[%clk 0:00:12]}  b3 {[%clk 0:00:04]} 55. g5 {[%clk 0:00:11]}  b2 {[%clk 0:00:04]} 56. g6 {[%clk 0:00:11]}  Bxg6+ {[%clk 0:00:03]} 57. Kxg6 {[%clk 0:00:11]}  b1=Q+ {[%clk 0:00:04]} 58. Kg5 {[%clk 0:00:12]}  Qg1+ {[%clk 0:00:04]} 59. Kh6 {[%clk 0:00:12]}  f2 {[%clk 0:00:05]} 60. Re8+ {[%clk 0:00:12]}  Kd4 {[%clk 0:00:05]} 61. Rd8+ {[%clk 0:00:12]}  Kc4 {[%clk 0:00:06]} 62. h5 {[%clk 0:00:12]}  Nc5 {[%clk 0:00:07]} 63. Rg8 {[%clk 0:00:11]}  f1=Q {[%clk 0:00:06]} 64. Rg7 {[%clk 0:00:02]}  Qf6+ {[%clk 0:00:05]} 65. Kh7 {[%clk 0:00:02]}  Qfxg7# {[%clk 0:00:05]} 0-1


[Site "https://www.chess.com"]

[Event "Titled Tuesday Blitz September 27 Late 2022"]
[White "Jobava, Baadur"]
[Black "Nakamura, Hikaru"]
[WhiteFideId "13601520"]
[BlackFideId "2016192"]
[WhiteElo "2582"]
[BlackElo "2850"]
[Result "0-1"]
[Round "10"]
[TimeControl "180+1"]
[Date "2022.09.27"]
[WhiteClock "0:00:01"]
[BlackClock "0:00:13"]

1. e4 {[%clk 0:03:00]}  g6 {[%clk 0:02:59]} 2. d4 {[%clk 0:03:00]}  Bg7 {[%clk 0:02:59]} 3. c3 {[%clk 0:02:58]}  d6 {[%clk 0:02:58]} 4. Bd3 {[%clk 0:02:58]}  e5 {[%clk 0:02:56]} 5. Ne2 {[%clk 0:02:57]}  Nf6 {[%clk 0:02:51]} 6. O-O {[%clk 0:02:56]}  O-O {[%clk 0:02:39]} 7. Nd2 {[%clk 0:02:55]}  Nc6 {[%clk 0:02:36]} 8. d5 {[%clk 0:02:53]}  Ne7 {[%clk 0:02:35]} 9. a4 {[%clk 0:02:53]}  a5 {[%clk 0:02:33]} 10. Ng3 {[%clk 0:02:39]}  c6 {[%clk 0:02:25]} 11. c4 {[%clk 0:02:39]}  Nd7 {[%clk 0:02:23]} 12. Bc2 {[%clk 0:02:33]}  cxd5 {[%clk 0:02:19]} 13. cxd5 {[%clk 0:02:32]}  b6 {[%clk 0:02:19]} 14. Re1 {[%clk 0:02:31]}  Ba6 {[%clk 0:02:17]} 15. Ra3 {[%clk 0:02:23]}  Rc8 {[%clk 0:02:12]} 16. Bd3 {[%clk 0:02:21]}  Bxd3 {[%clk 0:02:12]} 17. Rxd3 {[%clk 0:02:22]}  Qc7 {[%clk 0:02:09]} 18. Rc3 {[%clk 0:02:16]}  Qb8 {[%clk 0:02:10]} 19. Nb1 {[%clk 0:02:17]}  h5 {[%clk 0:02:03]} 20. h3 {[%clk 0:02:15]}  h4 {[%clk 0:01:59]} 21. Ne2 {[%clk 0:02:15]}  f5 {[%clk 0:01:58]} 22. Rxc8 {[%clk 0:02:13]}  Qxc8 {[%clk 0:01:56]} 23. Nec3 {[%clk 0:02:13]}  Nc5 {[%clk 0:01:51]} 24. f3 {[%clk 0:02:07]}  Kh7 {[%clk 0:01:44]} 25. Na3 {[%clk 0:02:06]}  Ng8 {[%clk 0:01:39]} 26. Nab5 {[%clk 0:02:03]}  Qd7 {[%clk 0:01:39]} 27. Be3 {[%clk 0:02:00]}  Bh6 {[%clk 0:01:37]} 28. Bf2 {[%clk 0:01:54]}  Bg5 {[%clk 0:01:37]} 29. Qe2 {[%clk 0:01:52]}  Nf6 {[%clk 0:01:36]} 30. Qc4 {[%clk 0:01:43]}  Bd2 {[%clk 0:01:06]} 31. Re2 {[%clk 0:01:42]}  Bxc3 {[%clk 0:01:05]} 32. Nxc3 {[%clk 0:01:42]}  fxe4 {[%clk 0:01:05]} 33. fxe4 {[%clk 0:01:24]}  Rc8 {[%clk 0:00:53]} 34. Qb5 {[%clk 0:01:13]}  Qxb5 {[%clk 0:00:50]} 35. axb5 {[%clk 0:01:14]}  g5 {[%clk 0:00:49]} 36. Re3 {[%clk 0:00:48]}  Kg6 {[%clk 0:00:45]} 37. Kf1 {[%clk 0:00:48]}  Nh5 {[%clk 0:00:44]} 38. Rf3 {[%clk 0:00:39]}  Nf4 {[%clk 0:00:41]} 39. Be3 {[%clk 0:00:25]}  Nd7 {[%clk 0:00:36]} 40. Rf2 {[%clk 0:00:19]}  Rc4 {[%clk 0:00:32]} 41. Rc2 {[%clk 0:00:15]}  Nd3 {[%clk 0:00:27]} 42. b3 {[%clk 0:00:06]}  Rc8 {[%clk 0:00:26]} 43. Ke2 {[%clk 0:00:06]}  Nf4+ {[%clk 0:00:23]} 44. Bxf4 {[%clk 0:00:06]}  gxf4 {[%clk 0:00:20]} 45. Kd2 {[%clk 0:00:05]}  Nf6 {[%clk 0:00:19]} 46. Kd3 {[%clk 0:00:04]}  Rc5 {[%clk 0:00:19]} 47. Re2 {[%clk 0:00:01]}  Kg5 {[%clk 0:00:15]} 48. Rb2 {[%clk 0:00:01]}  Rc7 {[%clk 0:00:14]} 49. b4 {[%clk 0:00:02]}  axb4 {[%clk 0:00:14]} 50. Rxb4 {[%clk 0:00:02]}  Nd7 {[%clk 0:00:15]} 51. Kd2 {[%clk 0:00:01]}  Nc5 {[%clk 0:00:15]} 52. Rb2 {[%clk 0:00:02]}  Ra7 {[%clk 0:00:15]} 53. Kc2 {[%clk 0:00:01]}  Ra1 {[%clk 0:00:14]} 54. Rb1 {[%clk 0:00:01]}  Ra3 {[%clk 0:00:12]} 55. Kb2 {[%clk 0:00:02]}  Ra5 {[%clk 0:00:12]} 56. Ra1 {[%clk 0:00:01]}  Rxa1 {[%clk 0:00:12]} 57. Kxa1 {[%clk 0:00:02]}  f3 {[%clk 0:00:13]} 58. gxf3 {[%clk 0:00:01]}  Kf4 {[%clk 0:00:13]} 0-1


[Site "https://www.chess.com"]

[Event "Titled Tuesday Blitz September 27 Late 2022"]
[White "Jorajuria Mendoza, Algol"]
[Black "Pesotskiy, Mikhail"]
[WhiteFideId "5128897"]
[BlackFideId "34164453"]
[WhiteElo "1600"]
[BlackElo "2013"]
[Result "1-0"]
[Round "10"]
[TimeControl "180+1"]
[Date "2022.09.28"]
[WhiteClock "0:00:09"]
[BlackClock "0:00:03"]

1. e4 {[%clk 0:03:00]}  e6 {[%clk 0:03:00]} 2. Qe2 {[%clk 0:02:58]}  c5 {[%clk 0:02:59]} 3. Nf3 {[%clk 0:02:58]}  g6 {[%clk 0:03:00]} 4. g3 {[%clk 0:02:59]}  Bg7 {[%clk 0:03:00]} 5. Bg2 {[%clk 0:02:59]}  Nc6 {[%clk 0:03:01]} 6. O-O {[%clk 0:03:00]}  d6 {[%clk 0:03:02]} 7. Rd1 {[%clk 0:03:00]}  Nge7 {[%clk 0:03:03]} 8. c3 {[%clk 0:03:00]}  O-O {[%clk 0:03:04]} 9. d4 {[%clk 0:03:00]}  cxd4 {[%clk 0:03:05]} 10. cxd4 {[%clk 0:03:01]}  Qb6 {[%clk 0:03:03]} 11. Nc3 {[%clk 0:02:44]}  e5 {[%clk 0:02:39]} 12. d5 {[%clk 0:02:36]}  Nd4 {[%clk 0:02:38]} 13. Nxd4 {[%clk 0:02:31]}  exd4 {[%clk 0:02:39]} 14. Nb5 {[%clk 0:02:31]}  Bd7 {[%clk 0:02:38]} 15. a4 {[%clk 0:02:25]}  a6 {[%clk 0:02:32]} 16. Na3 {[%clk 0:02:22]}  Rac8 {[%clk 0:02:30]} 17. Nc4 {[%clk 0:02:19]}  Qb4 {[%clk 0:02:28]} 18. Bf1 {[%clk 0:02:14]}  b5 {[%clk 0:02:20]} 19. Nb6 {[%clk 0:02:12]}  Rc7 {[%clk 0:01:50]} 20. Bd2 {[%clk 0:02:10]}  Qxb2 {[%clk 0:01:46]} 21. Rab1 {[%clk 0:01:59]}  Qa2 {[%clk 0:01:36]} 22. Qd3 {[%clk 0:01:51]}  Rb8 {[%clk 0:01:12]} 23. Ra1 {[%clk 0:01:45]}  Qxa1 {[%clk 0:01:04]} 24. Rxa1 {[%clk 0:01:45]}  Rxb6 {[%clk 0:01:04]} 25. Ba5 {[%clk 0:01:43]}  Nc8 {[%clk 0:01:02]} 26. Bxb6 {[%clk 0:01:38]}  Nxb6 {[%clk 0:01:03]} 27. axb5 {[%clk 0:01:27]}  Bxb5 {[%clk 0:01:04]} 28. Qd2 {[%clk 0:01:21]}  d3 {[%clk 0:01:02]} 29. Rc1 {[%clk 0:01:18]}  Nc4 {[%clk 0:00:04]} 30. Qxd3 {[%clk 0:01:15]}  Ne5 {[%clk 0:00:05]} 31. Qd1 {[%clk 0:01:13]}  Nf3+ {[%clk 0:00:05]} 32. Kg2 {[%clk 0:01:10]}  Bxf1+ {[%clk 0:00:03]} 33. Qxf1 {[%clk 0:01:05]}  Nd2 {[%clk 0:00:02]} 34. Qd1 {[%clk 0:01:01]}  Rxc1 {[%clk 0:00:02]} 35. Qxc1 {[%clk 0:01:00]}  Nxe4 {[%clk 0:00:03]} 36. Qc8+ {[%clk 0:01:01]}  Bf8 {[%clk 0:00:04]} 37. Qxa6 {[%clk 0:01:01]}  Nf6 {[%clk 0:00:04]} 38. Qb7 {[%clk 0:00:59]}  h5 {[%clk 0:00:04]} 39. h3 {[%clk 0:00:57]}  Kg7 {[%clk 0:00:04]} 40. Kf3 {[%clk 0:00:57]}  Kg8 {[%clk 0:00:05]} 41. Kf4 {[%clk 0:00:57]}  Kg7 {[%clk 0:00:05]} 42. f3 {[%clk 0:00:54]}  Ng8 {[%clk 0:00:06]} 43. g4 {[%clk 0:00:49]}  hxg4 {[%clk 0:00:07]} 44. fxg4 {[%clk 0:00:49]}  Be7 {[%clk 0:00:08]} 45. g5 {[%clk 0:00:47]}  f6 {[%clk 0:00:06]} 46. h4 {[%clk 0:00:39]}  fxg5+ {[%clk 0:00:06]} 47. hxg5 {[%clk 0:00:40]}  Kf7 {[%clk 0:00:07]} 48. Qd7 {[%clk 0:00:40]}  Kf8 {[%clk 0:00:07]} 49. Qe6 {[%clk 0:00:35]}  Kg7 {[%clk 0:00:08]} 50. Kg4 {[%clk 0:00:20]}  Bf8 {[%clk 0:00:08]} 51. Qe8 {[%clk 0:00:15]}  Be7 {[%clk 0:00:09]} 52. Qd7 {[%clk 0:00:16]}  Kf8 {[%clk 0:00:07]} 53. Kf4 {[%clk 0:00:14]}  Kf7 {[%clk 0:00:07]} 54. Ke4 {[%clk 0:00:15]}  Kf8 {[%clk 0:00:06]} 55. Kd4 {[%clk 0:00:14]}  Kf7 {[%clk 0:00:05]} 56. Kc4 {[%clk 0:00:14]}  Kf8 {[%clk 0:00:05]} 57. Kb5 {[%clk 0:00:14]}  Kf7 {[%clk 0:00:03]} 58. Kc6 {[%clk 0:00:15]}  Kf8 {[%clk 0:00:04]} 59. Qe6 {[%clk 0:00:14]}  Bxg5 {[%clk 0:00:03]} 60. Qxd6+ {[%clk 0:00:10]}  Ne7+ {[%clk 0:00:03]} 61. Kd7 {[%clk 0:00:09]} 1-0


[Site "https://www.chess.com"]

[Event "Titled Tuesday Blitz September 27 Late 2022"]
[White "Karas, Marek"]
[Black "Jean Louis, Marckens"]
[WhiteFideId "14928558"]
[BlackFideId "11900270"]
[WhiteElo "2272"]
[BlackElo "2031"]
[Result "0-1"]
[Round "10"]
[TimeControl "180+1"]
[Date "2022.09.28"]
[WhiteClock "0:00:01"]
[BlackClock "0:01:00"]

1. e4 {[%clk 0:03:00]}  e6 {[%clk 0:02:59]} 2. d4 {[%clk 0:03:00]}  d5 {[%clk 0:02:59]} 3. Bd3 {[%clk 0:02:59]}  dxe4 {[%clk 0:02:59]} 4. Bxe4 {[%clk 0:02:59]}  Nf6 {[%clk 0:03:00]} 5. Bf3 {[%clk 0:02:59]}  Be7 {[%clk 0:02:58]} 6. Ne2 {[%clk 0:02:59]}  O-O {[%clk 0:02:58]} 7. Nbc3 {[%clk 0:02:59]}  c5 {[%clk 0:02:58]} 8. d5 {[%clk 0:02:57]}  exd5 {[%clk 0:02:57]} 9. Nxd5 {[%clk 0:02:57]}  Nxd5 {[%clk 0:02:56]} 10. Qxd5 {[%clk 0:02:57]}  Qa5+ {[%clk 0:02:55]} 11. Bd2 {[%clk 0:02:57]}  Qb6 {[%clk 0:02:55]} 12. Bc3 {[%clk 0:02:50]}  Bf6 {[%clk 0:02:54]} 13. O-O-O {[%clk 0:02:48]}  Bxc3 {[%clk 0:02:50]} 14. Nxc3 {[%clk 0:02:47]}  Na6 {[%clk 0:02:48]} 15. Qd6 {[%clk 0:02:45]}  Qa5 {[%clk 0:02:35]} 16. Rhe1 {[%clk 0:02:40]}  Rb8 {[%clk 0:02:13]} 17. Nd5 {[%clk 0:02:29]}  Be6 {[%clk 0:02:12]} 18. Nf4 {[%clk 0:02:18]}  Bxa2 {[%clk 0:02:08]} 19. Re7 {[%clk 0:02:07]}  Bc4 {[%clk 0:01:58]} 20. Rd7 {[%clk 0:01:43]}  Qa1+ {[%clk 0:01:52]} 21. Kd2 {[%clk 0:01:42]}  Qxb2 {[%clk 0:01:53]} 22. Be4 {[%clk 0:01:31]}  Bb5 {[%clk 0:01:49]} 23. Ke1 {[%clk 0:01:19]}  Bxd7 {[%clk 0:01:48]} 24. Qxd7 {[%clk 0:01:20]}  Qe5 {[%clk 0:01:46]} 25. Qf5 {[%clk 0:01:17]}  Qxf5 {[%clk 0:01:45]} 26. Bxf5 {[%clk 0:01:18]}  Nb4 {[%clk 0:01:44]} 27. c3 {[%clk 0:01:16]}  Nc6 {[%clk 0:01:44]} 28. f3 {[%clk 0:01:13]}  b5 {[%clk 0:01:42]} 29. Be4 {[%clk 0:01:10]}  Rfc8 {[%clk 0:01:35]} 30. Bf5 {[%clk 0:01:09]}  Re8+ {[%clk 0:01:35]} 31. Kf2 {[%clk 0:01:09]}  Ne5 {[%clk 0:01:28]} 32. Ra1 {[%clk 0:01:07]}  b4 {[%clk 0:01:27]} 33. cxb4 {[%clk 0:01:06]}  cxb4 {[%clk 0:01:27]} 34. Rxa7 {[%clk 0:01:06]}  b3 {[%clk 0:01:27]} 35. Bb1 {[%clk 0:01:05]}  b2 {[%clk 0:01:26]} 36. Nd5 {[%clk 0:01:01]}  Nc4 {[%clk 0:01:25]} 37. Nc3 {[%clk 0:00:45]}  Nd2 {[%clk 0:01:23]} 38. Rd7 {[%clk 0:00:45]}  Nxb1 {[%clk 0:01:22]} 39. Nxb1 {[%clk 0:00:46]}  Rec8 {[%clk 0:01:22]} 40. Kg3 {[%clk 0:00:40]}  h6 {[%clk 0:01:21]} 41. Rd2 {[%clk 0:00:34]}  Rc1 {[%clk 0:01:20]} 42. Na3 {[%clk 0:00:33]}  b1=Q {[%clk 0:01:20]} 43. Nxb1 {[%clk 0:00:33]}  Rcxb1 {[%clk 0:01:21]} 44. h4 {[%clk 0:00:34]}  R1b2 {[%clk 0:01:20]} 45. Rd3 {[%clk 0:00:33]}  Ra2 {[%clk 0:01:20]} 46. Rd1 {[%clk 0:00:31]}  Rbb2 {[%clk 0:01:19]} 47. Rg1 {[%clk 0:00:32]}  g5 {[%clk 0:01:19]} 48. hxg5 {[%clk 0:00:31]}  hxg5 {[%clk 0:01:20]} 49. Kh3 {[%clk 0:00:29]}  Kg7 {[%clk 0:01:20]} 50. Kg3 {[%clk 0:00:30]}  Kg6 {[%clk 0:01:20]} 51. Kh3 {[%clk 0:00:31]}  f5 {[%clk 0:01:20]} 52. Kg3 {[%clk 0:00:31]}  f4+ {[%clk 0:01:20]} 53. Kh3 {[%clk 0:00:29]}  Rc2 {[%clk 0:01:21]} 54. Kh2 {[%clk 0:00:29]}  Ra8 {[%clk 0:01:18]} 55. Rd1 {[%clk 0:00:26]}  Rh8+ {[%clk 0:01:18]} 56. Kg1 {[%clk 0:00:26]}  Re8 {[%clk 0:01:15]} 57. Kh2 {[%clk 0:00:25]}  Rce2 {[%clk 0:01:15]} 58. Rd6+ {[%clk 0:00:21]}  Kh5 {[%clk 0:01:14]} 59. Rd7 {[%clk 0:00:21]}  g4 {[%clk 0:01:12]} 60. fxg4+ {[%clk 0:00:15]}  Kxg4 {[%clk 0:01:13]} 61. Rg7+ {[%clk 0:00:14]}  Kf5 {[%clk 0:01:13]} 62. Rf7+ {[%clk 0:00:12]}  Kg5 {[%clk 0:01:13]} 63. Rg7+ {[%clk 0:00:12]}  Kf6 {[%clk 0:01:13]} 64. Rg4 {[%clk 0:00:11]}  R8e4 {[%clk 0:01:11]} 65. Rh4 {[%clk 0:00:03]}  f3 {[%clk 0:01:11]} 66. Rh6+ {[%clk 0:00:02]}  Kg5 {[%clk 0:01:11]} 67. Rh8 {[%clk 0:00:01]}  Rxg2+ {[%clk 0:01:10]} 68. Kh3 {[%clk 0:00:01]}  Re7 {[%clk 0:01:02]} 69. Rf8 {[%clk 0:00:01]}  Rh7# {[%clk 0:01:00]} 0-1


[Site "https://www.chess.com"]

[Event "Titled Tuesday Blitz September 27 Late 2022"]
[White "Karwowski, Kacper"]
[Black "Musovic, Armin"]
[WhiteFideId "1126032"]
[BlackFideId "939935"]
[WhiteElo "2261"]
[BlackElo "2255"]
[Result "0-1"]
[Round "10"]
[TimeControl "180+1"]
[Date "2022.09.28"]
[WhiteClock "0:00:10"]
[BlackClock "0:00:21"]

1. e4 {[%clk 0:03:00]}  c6 {[%clk 0:03:00]} 2. d4 {[%clk 0:02:59]}  d5 {[%clk 0:03:01]} 3. exd5 {[%clk 0:02:59]}  cxd5 {[%clk 0:03:02]} 4. Bd3 {[%clk 0:02:59]}  Nc6 {[%clk 0:03:03]} 5. c3 {[%clk 0:03:00]}  Nf6 {[%clk 0:03:03]} 6. Bf4 {[%clk 0:03:00]}  g6 {[%clk 0:03:04]} 7. Nf3 {[%clk 0:02:58]}  Bg7 {[%clk 0:03:05]} 8. h3 {[%clk 0:02:58]}  O-O {[%clk 0:03:05]} 9. Nbd2 {[%clk 0:02:58]}  Re8 {[%clk 0:03:06]} 10. O-O {[%clk 0:02:58]}  Nd7 {[%clk 0:03:07]} 11. Re1 {[%clk 0:02:57]}  f6 {[%clk 0:03:05]} 12. c4 {[%clk 0:02:56]}  e6 {[%clk 0:03:05]} 13. cxd5 {[%clk 0:02:50]}  exd5 {[%clk 0:03:06]} 14. Qb3 {[%clk 0:02:49]}  Rxe1+ {[%clk 0:03:01]} 15. Rxe1 {[%clk 0:02:48]}  Nb6 {[%clk 0:03:01]} 16. a3 {[%clk 0:02:09]}  Bd7 {[%clk 0:02:27]} 17. Qa2 {[%clk 0:01:55]}  Be8 {[%clk 0:02:23]} 18. Nb3 {[%clk 0:01:51]}  Nd7 {[%clk 0:02:09]} 19. Nc5 {[%clk 0:01:13]}  Nxc5 {[%clk 0:02:07]} 20. dxc5 {[%clk 0:01:14]}  Bf7 {[%clk 0:02:04]} 21. b4 {[%clk 0:01:15]}  a6 {[%clk 0:01:50]} 22. Bd6 {[%clk 0:01:13]}  Bf8 {[%clk 0:01:43]} 23. Bf4 {[%clk 0:01:12]}  Qd7 {[%clk 0:01:37]} 24. Qb2 {[%clk 0:01:11]}  Bg7 {[%clk 0:01:34]} 25. Qc2 {[%clk 0:01:04]}  Re8 {[%clk 0:01:28]} 26. Rxe8+ {[%clk 0:00:57]}  Qxe8 {[%clk 0:01:29]} 27. Kf1 {[%clk 0:00:51]}  Qe6 {[%clk 0:01:16]} 28. Qe2 {[%clk 0:00:46]}  Qd7 {[%clk 0:01:14]} 29. Qc2 {[%clk 0:00:34]}  Nd8 {[%clk 0:01:03]} 30. Nd4 {[%clk 0:00:26]}  f5 {[%clk 0:00:57]} 31. Nf3 {[%clk 0:00:21]}  Nc6 {[%clk 0:00:53]} 32. Qe2 {[%clk 0:00:20]}  h6 {[%clk 0:00:51]} 33. Ne5 {[%clk 0:00:19]}  Qe6 {[%clk 0:00:35]} 34. Nxf7 {[%clk 0:00:14]}  Kxf7 {[%clk 0:00:30]} 35. Bc1 {[%clk 0:00:07]}  Qxe2+ {[%clk 0:00:26]} 36. Kxe2 {[%clk 0:00:07]}  Ke6 {[%clk 0:00:20]} 37. g3 {[%clk 0:00:05]}  g5 {[%clk 0:00:20]} 38. f4 {[%clk 0:00:05]}  Bf6 {[%clk 0:00:19]} 39. Kf3 {[%clk 0:00:04]}  Nd4+ {[%clk 0:00:19]} 40. Kf2 {[%clk 0:00:04]}  Nb3 {[%clk 0:00:20]} 41. Be3 {[%clk 0:00:04]}  Bb2 {[%clk 0:00:18]} 42. Ke2 {[%clk 0:00:04]}  Bxa3 {[%clk 0:00:18]} 43. Bd2 {[%clk 0:00:04]}  Nxd2 {[%clk 0:00:17]} 44. Kxd2 {[%clk 0:00:05]}  Bxb4+ {[%clk 0:00:18]} 45. Ke3 {[%clk 0:00:05]}  Bxc5+ {[%clk 0:00:18]} 46. Kf3 {[%clk 0:00:05]}  gxf4 {[%clk 0:00:18]} 47. Kxf4 {[%clk 0:00:05]}  Bd6+ {[%clk 0:00:19]} 48. Kf3 {[%clk 0:00:05]}  Ke5 {[%clk 0:00:19]} 49. g4 {[%clk 0:00:05]}  fxg4+ {[%clk 0:00:19]} 50. Kxg4 {[%clk 0:00:05]}  Be7 {[%clk 0:00:19]} 51. Kh5 {[%clk 0:00:06]}  Bg5 {[%clk 0:00:20]} 52. h4 {[%clk 0:00:06]}  Bf4 {[%clk 0:00:20]} 53. Kg6 {[%clk 0:00:06]}  a5 {[%clk 0:00:20]} 54. Bb5 {[%clk 0:00:06]}  Kd4 {[%clk 0:00:20]} 55. Kf5 {[%clk 0:00:06]}  Bg3 {[%clk 0:00:20]} 56. h5 {[%clk 0:00:06]}  Kc5 {[%clk 0:00:20]} 57. Ba4 {[%clk 0:00:06]}  b5 {[%clk 0:00:20]} 58. Bc2 {[%clk 0:00:07]}  a4 {[%clk 0:00:20]} 59. Kg6 {[%clk 0:00:07]}  Bf4 {[%clk 0:00:20]} 60. Kf5 {[%clk 0:00:07]}  Bg5 {[%clk 0:00:21]} 61. Ke6 {[%clk 0:00:08]}  d4 {[%clk 0:00:20]} 62. Ke5 {[%clk 0:00:08]}  b4 {[%clk 0:00:20]} 63. Ke4 {[%clk 0:00:09]}  b3 {[%clk 0:00:21]} 64. Bb1 {[%clk 0:00:08]}  a3 {[%clk 0:00:21]} 65. Kd3 {[%clk 0:00:09]}  a2 {[%clk 0:00:21]} 66. Bxa2 {[%clk 0:00:10]}  bxa2 {[%clk 0:00:22]} 67. Kc2 {[%clk 0:00:10]}  a1=Q {[%clk 0:00:21]} 0-1


[Site "https://www.chess.com"]

[Event "Titled Tuesday Blitz September 27 Late 2022"]
[White "Koellner, Ruben Gideon"]
[Black "Mickiewicz, Piotr"]
[WhiteFideId "12993093"]
[BlackFideId "1114891"]
[WhiteElo "2286"]
[BlackElo "2246"]
[Result "1-0"]
[Round "10"]
[TimeControl "180+1"]
[Date "2022.09.28"]
[WhiteClock "0:00:27"]
[BlackClock "0:00:09"]

1. d4 {[%clk 0:03:00]}  Nf6 {[%clk 0:02:59]} 2. Bg5 {[%clk 0:03:00]}  c5 {[%clk 0:02:58]} 3. Bxf6 {[%clk 0:03:00]}  gxf6 {[%clk 0:02:58]} 4. d5 {[%clk 0:02:57]}  f5 {[%clk 0:02:56]} 5. c4 {[%clk 0:02:57]}  Bg7 {[%clk 0:02:55]} 6. Qc2 {[%clk 0:02:57]}  d6 {[%clk 0:02:54]} 7. Nc3 {[%clk 0:02:57]}  Qa5 {[%clk 0:02:39]} 8. Rc1 {[%clk 0:02:55]}  Nd7 {[%clk 0:02:35]} 9. e3 {[%clk 0:02:55]}  Nf6 {[%clk 0:02:34]} 10. Bd3 {[%clk 0:02:54]}  Ne4 {[%clk 0:02:11]} 11. Ne2 {[%clk 0:02:39]}  Nxc3 {[%clk 0:02:01]} 12. Nxc3 {[%clk 0:02:40]}  Bxc3+ {[%clk 0:02:00]} 13. Qxc3 {[%clk 0:02:41]}  Qxc3+ {[%clk 0:02:00]} 14. Rxc3 {[%clk 0:02:41]}  e5 {[%clk 0:02:00]} 15. g3 {[%clk 0:02:41]}  Ke7 {[%clk 0:01:57]} 16. Kd2 {[%clk 0:02:39]}  b6 {[%clk 0:01:56]} 17. a3 {[%clk 0:02:37]}  Bd7 {[%clk 0:01:56]} 18. b4 {[%clk 0:02:36]}  f4 {[%clk 0:01:50]} 19. exf4 {[%clk 0:02:35]}  exf4 {[%clk 0:01:50]} 20. Re1+ {[%clk 0:02:30]}  Kf6 {[%clk 0:01:49]} 21. Bc2 {[%clk 0:02:20]}  fxg3 {[%clk 0:01:43]} 22. Rf3+ {[%clk 0:02:12]}  Kg7 {[%clk 0:01:42]} 23. hxg3 {[%clk 0:02:09]}  Rae8 {[%clk 0:01:40]} 24. Rh1 {[%clk 0:02:06]}  h6 {[%clk 0:01:38]} 25. Rh4 {[%clk 0:02:04]}  f6 {[%clk 0:01:15]} 26. Rhf4 {[%clk 0:01:53]}  Rhf8 {[%clk 0:01:15]} 27. b5 {[%clk 0:01:47]}  a5 {[%clk 0:01:10]} 28. bxa6 {[%clk 0:01:14]}  Ra8 {[%clk 0:01:09]} 29. Re3 {[%clk 0:01:07]}  Rf7 {[%clk 0:01:04]} 30. Bf5 {[%clk 0:01:00]}  Bxf5 {[%clk 0:00:44]} 31. Rxf5 {[%clk 0:01:01]}  Rxa6 {[%clk 0:00:44]} 32. Kc2 {[%clk 0:01:01]}  Ra4 {[%clk 0:00:33]} 33. Rf4 {[%clk 0:01:01]}  Rb7 {[%clk 0:00:24]} 34. Kb3 {[%clk 0:00:56]}  b5 {[%clk 0:00:24]} 35. cxb5 {[%clk 0:00:26]}  Rxf4 {[%clk 0:00:20]} 36. gxf4 {[%clk 0:00:27]}  Rxb5+ {[%clk 0:00:20]} 37. Kc4 {[%clk 0:00:28]}  Ra5 {[%clk 0:00:19]} 38. f5 {[%clk 0:00:28]}  h5 {[%clk 0:00:09]} 39. Rg3+ {[%clk 0:00:27]} 1-0


[Site "https://www.chess.com"]